[Event "Balkan Youth Online-ch 2020"]
[Site "Online"]
[Date "2020.10.31"]
[Round "5.32"]
[White "Dobre, Radu-Fabian"]
[Black "Guri, Adrian"]
[Result "1-0"]
[ECO "B27"]
[WhiteElo "2050"]
[BlackElo "1611"]
[Annotator "ChessBase"]
[PlyCount "51"]
[EventDate "2020.10.31"]
[EventType "swiss"]
[SourceTitle "playchess.com"]
[Source "ChessBase"]
[SourceQuality "1"]
[TimeControl "1500+5"]

1. e4 {[%emt 0:00:01]} c5 {[%emt 0:08:40]} 2. Nf3 {[%emt 0:00:42]} g6 {[%emt 0:00:00]} 3. c3 {[%emt 0:00:12]} Bg7 {[%emt 0:00:00]} 4. d4 {[%emt 0:00:00]} cxd4 {[%emt 0:00:00]} 5. cxd4 {[%emt 0:00:00]} d5 {[%emt 0:00:00]} 6. e5 {[%emt 0:00:00]} Bg4 {[%emt 0:00:00]} 7. Bb5+ {[%emt 0:00:40]} Nd7 {[%emt 0:00:00]} 8. h3 {[%emt 0:00:43]} Bxf3 {[%emt 0:00:00]} 9. Qxf3 {[%emt 0:00:02]} a6 {[%emt 0:00:00]} 10. Bd3 {[%emt 0:00:37]} e6 {[%emt 0:00:00]} 11. O-O {[%emt 0:00:41]} Qb6 {[%emt 0:00:00]} 12. Be3 {[%emt 0:04:24]} Qxb2 {[%emt 0:02:05]} 13. Nd2 {[%emt 0:00:00]} Qc3 {[%emt 0:00:23]} 14. Qe2 {[%emt 0:00:38]} Ne7 {[%emt 0:00:43]} 15. Rfc1 {[%emt 0:00:10]} Qa5 {[%emt 0:00:04]} 16. Nb3 {[%emt 0:00:16]} Qd8 {[%emt 0:00:28]} 17. Bg5 {[%emt 0:00:05]} O-O {[%emt 0:00:29]} 18. Bxe7 {[%emt 0:00:04]} Qxe7 {[%emt 0:00:06]} 19. Rc7 {[%emt 0:00:11]} b5 {[%emt 0:03:22]} 20. Nc5 {[%emt 0:00:10]} Rfd8 {[%emt 0:00:28]} 21. a4 {[%emt 0:01:06]} Rac8 {[%emt 0:00:58]} 22. Rb7 {[%emt 0:02:48]} Rb8 {[%emt 0:01:05]} 23. axb5 {[%emt 0:00:50]} axb5 {[%emt 0:01:16]} 24. Raa7 {[%emt 0:00:16]} Rxb7 {[%emt 0:00:02]} 25. Rxb7 {[%emt 0:00:00]} Kf8 {[%emt 0:03:20]} 26. Bxb5 {[%emt 0:00:10]} 1-0

[Event "Balkan Youth Online-ch 2020"]
[Site "Online"]
[Date "2020.10.31"]
[Round "5.33"]
[White "Dafa, Sirio"]
[Black "Oltean, Cristian-Daniel"]
[Result "0-1"]
[ECO "B01"]
[WhiteElo "1004"]
[BlackElo "2001"]
[Annotator "NA"]
[PlyCount "90"]
[EventDate "2020.10.31"]
[EventType "swiss"]
[SourceTitle "playchess.com"]
[Source "ChessBase"]
[SourceQuality "1"]
[TimeControl "1500+5"]

1. e4 {[%emt 0:00:00]} d5 {[%emt 0:00:00]} 2. exd5 {[%emt 0:00:00]} Nf6 {[%emt 0:00:00]} 3. d4 {[%emt 0:00:09]} Bg4 {[%emt 0:00:00]} 4. Be2 {[%emt 0:00:52]} Bxe2 {[%emt 0:00:00]} 5. Nxe2 {[%emt 0:00:13]} Qxd5 {[%emt 0:00:00]} 6. O-O {[%emt 0:00:02]} Nc6 {[%emt 0:00:00]} 7. Na3 {[%emt 0:02:00] B01: Scandinavian Defence.} O-O-O {[%emt 0:00:00]} 8. c4 {[%emt 0:00:10]} Qh5 {[%emt 0:00:08]} 9. Nc2 {[%emt 0:01:25] [#]} g5 $146 {[%emt 0:02:54]} ({Predecessor:} 9... e6 10. Bf4 g5 11. Bg3 Qg6 12. b4 Ne4 13. b5 Nxg3 14. bxc6 Nxf1 15. cxb7+ Kb8 16. Kxf1 {0-1 (69) Zareba,R (2093)-Janiszewski,M (2129) Jastrzebia Gora 2016}) 10. Nc3 {[%emt 0:02:56]} Qg6 {[%emt 0:00:58]} 11. d5 {[%emt 0:02:38]} e6 {[%emt 0:03:55]} 12. Ne3 {[%emt 0:04:38]} (12. Nd4 $5 {[%cal Rd5c6]} Nb4 13. a3 $14 (13. dxe6 $2 c5 $17)) 12... exd5 {[%emt 0:02:48]} 13. cxd5 {[%emt 0:01:04]} Bc5 {[%emt 0:02:35]} 14. Qa4 {[%emt 0:01:24]} Ne7 {[%emt 0:01:57]} 15. Rd1 {[%emt 0:02:24]} (15. b4 $1 $11 Bxe3 16. Bxe3) 15... Rd7 {[%emt 0:02:31]} 16. b4 {[%emt 0:01:19]} Bb6 {[%emt 0:00:07]} 17. d6 {[%emt 0:00:58]} Rxd6 {[%emt 0:06:00]} 18. Rxd6 {[%emt 0:00:08]} cxd6 {[%emt 0:00:00]} 19. Nc4 {[%emt 0:00:44]} Kb8 {[%emt 0:01:01]} 20. Nxb6 {[%emt 0:00:59]} axb6 {[%emt 0:00:00]} 21. Nb5 {[%emt 0:00:35]} Nc6 {[%emt 0:00:13]} 22. Be3 {[%emt 0:01:03]} Nd5 {[%emt 0:00:01]} 23. Rc1 {[%emt 0:00:37]} Nxe3 {[%emt 0:00:47]} 24. fxe3 {[%emt 0:00:02]} Qe4 {[%emt 0:00:22]} 25. Kf2 {[%emt 0:00:18]} Qxb4 $2 {[%emt 0:00:17]} ({Black should try} 25... Re8 $19 26. Rc3 Re5) 26. Qxb4 {[%emt 0:00:12]} Nxb4 {[%emt 0:00:00]} 27. Rd1 {[%emt 0:00:01]} Rd8 {[%emt 0:00:20]} 28. a3 {[%emt 0:00:10]} Nc6 {[%emt 0:00:11]} 29. Rxd6 {[%emt 0:00:00]} Rxd6 {[%emt 0:00:00]} 30. Nxd6 {[%emt 0:00:00]} Ne5 {[%emt 0:00:00]} 31. e4 {[%emt 0:00:01]} Kc7 {[%emt 0:00:00]} 32. Nb5+ {[%emt 0:00:14]} (32. Ne8+ $17 {is a better defense.} Kc6 33. Nf6) 32... Kc6 {[%emt 0:00:00]} 33. a4 $19 {[%emt 0:00:10]} Kc5 {[%emt 0:00:00]} 34. h3 {[%emt 0:00:00]} Kb4 {[%emt 0:00:00]} 35. Nd6 {[%emt 0:00:00]} Kxa4 {[%emt 0:00:00]} 36. Nxb7 {[%emt 0:00:00]} b5 {[%emt 0:00:00]} 37. Nc5+ {[%emt 0:00:00]} Ka3 {[%emt 0:00:00]} 38. Ke3 {[%emt 0:00:00]} b4 {[%emt 0:00:00]} 39. Kd4 {[%emt 0:00:00]} Nc6+ {[%emt 0:00:00]} 40. Kc4 {[%emt 0:00:00]} Na5+ {[%emt 0:00:00]} 41. Kd3 {[%emt 0:00:00]} b3 {[%emt 0:00:00]} 42. Kc3 {[%emt 0:00:19]} b2 {[%emt 0:00:00]} 43. Kc2 {[%emt 0:00:00]} Ka2 {[%emt 0:00:00]} 44. Na4 {[%emt 0:00:00]} b1=Q+ {[%emt 0:00:00]} 45. Kd2 {[%emt 0:00:00]} Qb4+ {[%emt 0:00:00]} 0-1

[Event "Balkan Youth Online-ch 2020"]
[Site "Online"]
[Date "2020.10.31"]
[Round "5.38"]
[White "Padurariu, Mihai-Edward"]
[Black "Kilic, Gokturk Kagan"]
[Result "0-1"]
[ECO "C27"]
[WhiteElo "2084"]
[BlackElo "2084"]
[Annotator "NA"]
[PlyCount "80"]
[EventDate "2020.10.31"]
[EventType "swiss"]
[SourceTitle "playchess.com"]
[Source "ChessBase"]
[SourceQuality "1"]
[TimeControl "1500+5"]

1. e4 {[%emt 0:00:00]} e5 {[%emt 0:00:06]} 2. Bc4 {[%emt 0:00:00]} Nf6 {[%emt 0:00:01]} 3. Nc3 {[%emt 0:00:00]} Nxe4 {[%emt 0:00:32]} 4. Qh5 {[%emt 0:00:00]} Nd6 {[%emt 0:00:00]} 5. Bb3 {[%emt 0:00:00]} Be7 {[%emt 0:00:00]} 6. Qxe5 {[%emt 0:00:00]} O-O {[%emt 0:00:08] C27: Vienna Game: 2...Nf6 3 Bc4 Nxe4.} 7. d3 {[%emt 0:00:27]} c6 {[%emt 0:03:09] [#]} 8. Nge2 $146 {[%emt 0:01:23]} ({Predecessor:} 8. d4 b5 9. Nf3 a5 10. a3 Ba6 11. O-O Nc8 12. Ne4 d5 13. Ng3 Nd7 14. Qf4 {½-½ (30) Lomasov,S (2450)-Goganov,A (2632) Moscow 2017}) 8... Ne8 {[%emt 0:00:25]} 9. O-O {[%emt 0:01:39]} d5 {[%emt 0:00:07]} 10. d4 {[%emt 0:01:32]} Bf6 {[%emt 0:02:23]} 11. Qf4 {[%emt 0:01:39]} Na6 {[%emt 0:00:00]} 12. Nd1 {[%emt 0:03:36]} Nd6 {[%emt 0:00:26]} 13. Ng3 {[%emt 0:02:04]} g6 {[%emt 0:02:15]} 14. c3 {[%emt 0:01:02]} Nc7 {[%emt 0:00:01]} 15. f3 {[%emt 0:02:07]} Re8 {[%emt 0:01:10]} 16. Qd2 {[%emt 0:01:12]} Bh4 {[%emt 0:01:44]} 17. Nf2 {[%emt 0:01:15]} a5 {[%emt 0:03:11]} 18. a4 {[%emt 0:00:41]} b6 {[%emt 0:00:39]} 19. Nd3 {[%emt 0:01:18]} Ba6 {[%emt 0:00:09]} 20. Rd1 {[%emt 0:00:11]} Ne6 {[%emt 0:01:21]} 21. Ne5 {[%emt 0:01:52]} Bg5 {[%emt 0:01:55]} 22. Qf2 {[%emt 0:00:18]} Bxc1 {[%emt 0:02:38]} 23. Raxc1 {[%emt 0:00:00]} Qg5 {[%emt 0:00:00]} 24. Nxc6 {[%emt 0:02:39]} Nf4 {[%emt 0:00:49]} 25. Ne5 {[%emt 0:01:48]} h5 {[%emt 0:00:09]} 26. h4 {[%emt 0:00:07]} Qxh4 {[%emt 0:00:10]} 27. Bc2 {[%emt 0:00:03]} Qg5 {[%emt 0:00:14]} 28. Kh2 {[%emt 0:00:04]} h4 {[%emt 0:01:30]} 29. Nf1 {[%emt 0:00:00]} f6 {[%emt 0:00:00]} 30. Ne3 {[%emt 0:00:22]} fxe5 {[%emt 0:00:05]} 31. dxe5 {[%emt 0:00:00]} Rxe5 {[%emt 0:00:00]} 32. Rd2 {[%emt 0:00:00]} Rae8 {[%emt 0:00:00]} 33. Re1 {[%emt 0:00:05]} Rxe3 {[%emt 0:00:00]} 34. Rxe3 {[%emt 0:00:00]} Rxe3 {[%emt 0:01:25]} 35. Qxe3 {[%emt 0:00:00]} Bf1 {[%emt 0:00:25]} 36. Qxb6 {[%emt 0:00:16]} Bxg2 {[%emt 0:00:20]} 37. Qb8+ {[%emt 0:00:06]} Kg7 {[%emt 0:00:01]} 38. Qc7+ {[%emt 0:00:11]} Kh6 {[%emt 0:00:08]} 39. Qb6 {[%emt 0:00:07]} Qg3+ {[%emt 0:00:00]} 40. Kg1 {[%emt 0:00:00]} Nh3# {[%emt 0:00:00]} 0-1

[Event "Balkan Youth Online-ch 2020"]
[Site "Online"]
[Date "2020.10.31"]
[Round "5.40"]
[White "Jordanov Mihail"]
[Black "Vaupot, Luka"]
[Result "1-0"]
[ECO "C06"]
[WhiteElo "2105"]
[BlackElo "2010"]
[Annotator "ChessBase"]
[PlyCount "61"]
[EventDate "2020.10.31"]
[EventType "swiss"]
[SourceTitle "playchess.com"]
[Source "ChessBase"]
[SourceQuality "1"]
[TimeControl "1500+5"]

1. e4 {[%emt 0:00:00]} e6 {[%emt 0:00:00]} 2. d4 {[%emt 0:00:00]} d5 {[%emt 0:00:00]} 3. Nd2 {[%emt 0:00:00]} Nf6 {[%emt 0:00:00]} 4. e5 {[%emt 0:00:00]} Nfd7 {[%emt 0:00:00]} 5. Bd3 {[%emt 0:00:00]} c5 {[%emt 0:00:00]} 6. c3 {[%emt 0:00:00]} Nc6 {[%emt 0:00:00]} 7. Ngf3 {[%emt 0:00:00]} f6 {[%emt 0:00:00]} 8. exf6 {[%emt 0:00:00]} Nxf6 {[%emt 0:00:00]} 9. O-O {[%emt 0:00:00]} cxd4 {[%emt 0:00:23]} 10. cxd4 {[%emt 0:00:00]} Bd6 {[%emt 0:00:00]} 11. Nb3 {[%emt 0:00:00]} O-O {[%emt 0:00:00]} 12. Bg5 {[%emt 0:00:00]} e5 {[%emt 0:02:18]} 13. dxe5 {[%emt 0:07:40]} Nxe5 {[%emt 0:00:02]} 14. Bc2 {[%emt 0:00:00]} Kh8 {[%emt 0:04:17]} 15. Nbd4 {[%emt 0:02:47]} Bg4 {[%emt 0:05:26]} 16. h3 {[%emt 0:03:10]} Bxf3 {[%emt 0:05:40]} 17. Nxf3 {[%emt 0:00:00]} Nxf3+ {[%emt 0:00:00]} 18. Qxf3 {[%emt 0:00:01]} Qb6 {[%emt 0:00:00]} 19. Qd3 {[%emt 0:02:25]} Ne4 {[%emt 0:02:31]} 20. Be3 {[%emt 0:05:25]} Bc5 {[%emt 0:00:00]} 21. Rae1 {[%emt 0:02:36]} Rad8 {[%emt 0:02:47]} 22. f3 {[%emt 0:01:36]} Nf6 {[%emt 0:00:08]} 23. Kh1 {[%emt 0:00:07]} g6 {[%emt 0:01:25]} 24. Bg5 {[%emt 0:00:29]} Qxb2 {[%emt 0:01:43]} 25. Rb1 {[%emt 0:00:20]} Qe5 {[%emt 0:00:00]} 26. Bh6 {[%emt 0:00:00]} Nh5 {[%emt 0:00:14]} 27. f4 {[%emt 0:00:13]} Ng3+ {[%emt 0:00:04]} 28. Qxg3 {[%emt 0:00:00]} Qe2 {[%emt 0:00:00]} 29. Qc3+ {[%emt 0:00:02]} d4 {[%emt 0:00:04]} 30. Qxc5 {[%emt 0:00:00]} Rf5 {[%emt 0:00:06]} 31. Bxf5 {[%emt 0:00:05]} 1-0

[Event "Balkan Youth Online-ch 2020"]
[Site "Online"]
[Date "2020.10.31"]
[Round "5.42"]
[White "Terziev, Dimo"]
[Black "Dimov, Nikola"]
[Result "1-0"]
[ECO "B31"]
[WhiteElo "2123"]
[BlackElo "1771"]
[Annotator "RC"]
[PlyCount "111"]
[EventDate "2020.10.31"]
[EventType "swiss"]
[SourceTitle "playchess.com"]
[Source "ChessBase"]
[SourceQuality "1"]
[TimeControl "1500+5"]

1. e4 {[%emt 0:00:00]} c5 {[%emt 0:00:00]} 2. Nf3 {[%emt 0:00:00]} Nc6 {[%emt 0:00:00]} 3. Bb5 {[%emt 0:00:00]} g6 {[%emt 0:00:00]} 4. Bxc6 {[%emt 0:00:00]} bxc6 {[%emt 0:00:00]} 5. O-O {[%emt 0:00:00]} Bg7 {[%emt 0:00:00]} 6. c3 {[%emt 0:00:00]} d6 {[%emt 0:00:00]} 7. d4 {[%emt 0:00:00]} cxd4 {[%emt 0:00:00]} 8. cxd4 {[%emt 0:00:00]} Nf6 {[%emt 0:00:02]} 9. Nc3 {[%emt 0:00:00]} O-O {[%emt 0:00:01]} 10. h3 {[%emt 0:00:00]} Be6 {[%emt 0:01:11]} 11. Be3 {[%emt 0:00:00]} Re8 {[%emt 0:00:59]} 12. Qd2 {[%emt 0:00:00]} Qc7 {[%emt 0:01:20]} 13. Rac1 {[%emt 0:00:09]} Qb7 {[%emt 0:00:02]} 14. Rb1 {[%emt 0:00:09]} Rab8 {[%emt 0:00:42]} 15. Bh6 {[%emt 0:00:00]} Bc4 {[%emt 0:02:46]} 16. Rfd1 {[%emt 0:00:02]} d5 {[%emt 0:01:45]} 17. Bxg7 {[%emt 0:00:11]} Kxg7 {[%emt 0:00:00]} 18. b3 {[%emt 0:00:15]} Bb5 {[%emt 0:00:07]} 19. e5 {[%emt 0:00:47]} Ne4 {[%emt 0:00:00]} 20. Nxe4 {[%emt 0:00:01]} dxe4 {[%emt 0:00:00]} 21. Nh2 {[%emt 0:00:00]} Red8 {[%emt 0:00:17]} 22. Ng4 {[%emt 0:00:00]} Rg8 {[%emt 0:02:46]} 23. Nh6 {[%emt 0:00:54]} Rgf8 {[%emt 0:00:10]} 24. Ng4 {[%emt 0:01:08]} Rg8 {[%emt 0:00:00]} 25. Re1 {[%emt 0:00:25]} Bd3 {[%emt 0:00:01]} 26. Rbc1 {[%emt 0:00:00]} Rbd8 {[%emt 0:00:46]} 27. Qh6+ {[%emt 0:03:07]} Kh8 {[%emt 0:00:00]} 28. Qh4 {[%emt 0:00:34]} Rxd4 {[%emt 0:01:16]} 29. e6 {[%emt 0:03:22]} fxe6 {[%emt 0:02:14]} 30. Rc5 {[%emt 0:02:07]} Rd5 {[%emt 0:01:28]} 31. Rec1 {[%emt 0:00:45]} Bb5 {[%emt 0:02:31]} 32. Qg3 {[%emt 0:00:55]} Qb8 {[%emt 0:01:08]} 33. Qc3+ {[%emt 0:00:20]} Rg7 {[%emt 0:00:16]} 34. a4 {[%emt 0:00:02]} Rxc5 {[%emt 0:01:14]} 35. Qxc5 {[%emt 0:00:00]} Be2 {[%emt 0:00:02]} 36. Nh6 {[%emt 0:00:11]} Qf4 {[%emt 0:00:28]} 37. Qe3 {[%emt 0:00:13]} Qxe3 {[%emt 0:00:23]} 38. fxe3 {[%emt 0:00:00]} g5 {[%emt 0:00:16]} 39. Kf2 {[%emt 0:01:28]} Bd3 {[%emt 0:00:14]} 40. Rxc6 {[%emt 0:00:40]} Rg6 {[%emt 0:00:00]} 41. Nf7+ {[%emt 0:00:05]} Kg7 {[%emt 0:00:00]} 42. Ne5 {[%emt 0:00:00]} Rf6+ {[%emt 0:00:00]} 43. Kg3 {[%emt 0:00:00]} h5 {[%emt 0:01:50]} 44. Rc7 {[%emt 0:01:29]} h4+ {[%emt 0:00:00]} 45. Kh2 {[%emt 0:00:00]} Rf2 {[%emt 0:00:26]} 46. Rxe7+ {[%emt 0:00:42]} Kf8 {[%emt 0:00:02]} 47. Rd7 {[%emt 0:04:12]} Rd2 {[%emt 0:00:51]} 48. b4 {[%emt 0:01:02]} Rb2 {[%emt 0:00:33]} 49. b5 {[%emt 0:00:04]} Ra2 {[%emt 0:00:16]} 50. Rxa7 {[%emt 0:00:03]} Re2 {[%emt 0:00:06]} 51. b6 {[%emt 0:00:04]} Rb2 {[%emt 0:00:10]} 52. b7 {[%emt 0:00:02]} Bf1 {[%emt 0:00:07]} 53. Ra8+ {[%emt 0:00:11]} Ke7 {[%emt 0:00:02]} 54. b8=Q {[%emt 0:00:04]} Rxg2+ {[%emt 0:00:00]} 55. Kh1 {[%emt 0:00:00]} Rg3 {[%emt 0:00:00]} 56. Qd8# {[%emt 0:00:00]} 1-0

[Event "Balkan Youth Online-ch 2020"]
[Site "Online"]
[Date "2020.10.31"]
[Round "5.43"]
[White "Filippovskiy Nikita"]
[Black "Boci, Petro"]
[Result "0-1"]
[ECO "B33"]
[WhiteElo "1534"]
[BlackElo "1434"]
[Annotator "NA"]
[PlyCount "62"]
[EventDate "2020.10.31"]
[EventType "swiss"]
[SourceTitle "playchess.com"]
[Source "ChessBase"]
[SourceQuality "1"]
[TimeControl "1500+5"]

1. e4 {[%emt 0:00:00]} c5 {[%emt 0:00:00]} 2. Nf3 {[%emt 0:00:00]} Nc6 {[%emt 0:00:00]} 3. d4 {[%emt 0:00:00]} cxd4 {[%emt 0:00:00]} 4. Nxd4 {[%emt 0:00:00]} Nf6 {[%emt 0:00:00]} 5. Nc3 {[%emt 0:00:00]} e5 {[%emt 0:00:00]} 6. Ndb5 {[%emt 0:00:00]} d6 {[%emt 0:00:00]} 7. Nd5 {[%emt 0:00:00]} Nxd5 {[%emt 0:00:00]} 8. exd5 {[%emt 0:00:00]} Nb8 {[%emt 0:00:00]} 9. c4 {[%emt 0:00:00]} Be7 {[%emt 0:00:12]} 10. Bd3 {[%emt 0:00:00]} Nd7 {[%emt 0:00:19]} 11. Be3 {[%emt 0:00:00]} a6 {[%emt 0:04:38]} 12. Nc3 {[%emt 0:00:02]} Nf6 {[%emt 0:00:52]} 13. h3 {[%emt 0:02:23]} O-O {[%emt 0:01:32]} 14. Qc2 {[%emt 0:00:13]} Bd7 {[%emt 0:00:48]} 15. g4 {[%emt 0:00:29]} g6 {[%emt 0:02:42]} 16. Bh6 {[%emt 0:00:11]} Re8 {[%emt 0:00:03]} 17. O-O-O {[%emt 0:00:17]} b5 {[%emt 0:00:29]} 18. b3 {[%emt 0:00:21]} bxc4 {[%emt 0:00:27]} 19. bxc4 {[%emt 0:00:09]} Rb8 {[%emt 0:00:58]} 20. Kd2 {[%emt 0:00:13]} Qa5 {[%emt 0:00:21]} 21. Rb1 {[%emt 0:00:49]} Rbc8 {[%emt 0:02:38]} 22. Rb7 {[%emt 0:00:45]} Rc5 {[%emt 0:02:57]} 23. Be3 {[%emt 0:01:58]} Rcc8 {[%emt 0:00:38]} 24. g5 {[%emt 0:01:38]} Nxd5 {[%emt 0:00:49]} 25. Rxd7 {[%emt 0:01:33]} e4 {[%emt 0:00:54]} 26. cxd5 {[%emt 0:01:37]} exd3 {[%emt 0:00:03]} 27. Qxd3 {[%emt 0:01:30]} Rxc3 {[%emt 0:00:24]} 28. Qxc3 {[%emt 0:00:12]} Qxd5+ {[%emt 0:00:00]} 29. Bd4 {[%emt 0:00:59]} Bxg5+ {[%emt 0:00:11]} 30. Kc2 {[%emt 0:00:44]} Qxa2+ {[%emt 0:00:22]} 31. Kd1 {[%emt 0:00:57]} Qe2# {[%emt 0:00:08]} 0-1

[Event "Balkan Youth Online-ch 2020"]
[Site "Online"]
[Date "2020.10.31"]
[Round "5.44"]
[White "Cani, Dejvi"]
[Black "Mitkov, Simeon-Alekzander"]
[Result "1-0"]
[ECO "B42"]
[WhiteElo "1188"]
[BlackElo "1319"]
[Annotator "NA"]
[PlyCount "127"]
[EventDate "2020.10.31"]
[EventType "swiss"]
[SourceTitle "playchess.com"]
[Source "ChessBase"]
[SourceQuality "1"]
[TimeControl "1500+5"]

1. e4 {[%emt 0:00:00]} c5 {[%emt 0:00:00]} 2. Nf3 {[%emt 0:00:14]} e6 {[%emt 0:00:00]} 3. d4 {[%emt 0:00:12]} cxd4 {[%emt 0:00:00]} 4. Nxd4 {[%emt 0:00:01]} Nf6 {[%emt 0:00:00]} 5. Nc3 {[%emt 0:00:25]} d6 {[%emt 0:00:00]} 6. Bd3 {[%emt 0:00:06]} a6 {[%emt 0:00:17]} 7. O-O {[%emt 0:00:05]} b5 {[%emt 0:00:00]} 8. a3 {[%emt 0:00:02]} Bb7 {[%emt 0:00:00]} 9. Bg5 {[%emt 0:00:05]} Be7 {[%emt 0:00:00]} 10. f4 {[%emt 0:00:40]} h6 {[%emt 0:00:01]} 11. Bxf6 {[%emt 0:00:07]} Bxf6 {[%emt 0:00:00]} 12. Nf3 {[%emt 0:00:00]} Nd7 {[%emt 0:00:00]} 13. Qe2 {[%emt 0:00:18]} O-O {[%emt 0:00:18]} 14. Rad1 {[%emt 0:00:08]} Qb6+ {[%emt 0:00:02]} 15. Kh1 {[%emt 0:00:07]} Rac8 {[%emt 0:00:06]} 16. Qd2 {[%emt 0:00:30]} Nc5 {[%emt 0:00:29]} 17. Rde1 {[%emt 0:00:42]} Nxd3 {[%emt 0:00:24]} 18. cxd3 {[%emt 0:00:02]} a5 {[%emt 0:00:01]} 19. e5 {[%emt 0:00:49]} dxe5 {[%emt 0:00:10]} 20. fxe5 {[%emt 0:00:01]} Be7 {[%emt 0:00:00]} 21. Ne4 {[%emt 0:01:29]} Bxe4 {[%emt 0:00:35]} 22. Rxe4 {[%emt 0:00:03]} Qc6 {[%emt 0:00:11]} 23. Rg4 {[%emt 0:00:17]} Kh8 {[%emt 0:00:31]} 24. Qf4 {[%emt 0:01:06]} Qd5 {[%emt 0:02:40]} 25. Qg3 {[%emt 0:00:40]} Rg8 {[%emt 0:00:48]} 26. Rd4 {[%emt 0:00:24]} Qc5 {[%emt 0:01:11]} 27. Rd7 {[%emt 0:00:48]} Rcd8 {[%emt 0:00:21]} 28. Rxd8 {[%emt 0:00:17]} Rxd8 {[%emt 0:00:10]} 29. d4 {[%emt 0:00:07]} Qc4 {[%emt 0:00:26]} 30. Nd2 {[%emt 0:01:48]} Qc2 {[%emt 0:01:21]} 31. Rxf7 {[%emt 0:01:25]} Bg5 {[%emt 0:00:05]} 32. Nf3 {[%emt 0:01:06]} Qd1+ {[%emt 0:00:27]} 33. Ng1 {[%emt 0:00:00]} Qxd4 {[%emt 0:00:16]} 34. h3 {[%emt 0:00:23]} Qh4 {[%emt 0:01:27]} 35. Qf3 {[%emt 0:00:58]} Kg8 {[%emt 0:01:49]} 36. Rb7 {[%emt 0:00:44]} Qf4 {[%emt 0:00:50]} 37. Rxb5 {[%emt 0:03:31]} Qxf3 {[%emt 0:00:30]} 38. Nxf3 {[%emt 0:00:06]} Bf4 {[%emt 0:00:43]} 39. Kg1 {[%emt 0:00:26]} Rd1+ {[%emt 0:01:45]} 40. Kf2 {[%emt 0:00:02]} Rb1 {[%emt 0:00:01]} 41. g3 {[%emt 0:00:07]} Bc1 {[%emt 0:00:14]} 42. b3 {[%emt 0:02:41]} Bxa3 {[%emt 0:00:07]} 43. Nd4 {[%emt 0:00:09]} Kf7 {[%emt 0:00:37]} 44. Rxa5 {[%emt 0:01:55]} Bb2 {[%emt 0:00:48]} 45. Nf3 {[%emt 0:01:01]} Bc3 {[%emt 0:00:38]} 46. Ra7+ {[%emt 0:00:28]} Kg8 {[%emt 0:00:04]} 47. Rb7 {[%emt 0:00:06]} Rd1 {[%emt 0:01:50]} 48. Ke3 {[%emt 0:00:26]} Rd5 {[%emt 0:00:39]} 49. Ke4 {[%emt 0:00:02]} g5 {[%emt 0:00:09]} 50. b4 {[%emt 0:00:08]} Kf8 {[%emt 0:00:16]} 51. b5 {[%emt 0:00:09]} Ba5 {[%emt 0:00:20]} 52. b6 {[%emt 0:00:14]} Rb5 {[%emt 0:00:15]} 53. Rb8+ {[%emt 0:00:00]} Ke7 {[%emt 0:00:11]} 54. b7 {[%emt 0:00:43]} Bc7 {[%emt 0:00:15]} 55. Rh8 {[%emt 0:00:04]} Rxb7 {[%emt 0:00:13]} 56. Rxh6 {[%emt 0:00:00]} Rb4+ {[%emt 0:00:11]} 57. Nd4 {[%emt 0:00:11]} Bb6 {[%emt 0:00:06]} 58. Rxe6+ {[%emt 0:00:00]} Kf7 {[%emt 0:00:13]} 59. Rd6 {[%emt 0:00:06]} Bc5 {[%emt 0:00:16]} 60. Rd7+ {[%emt 0:00:22]} Ke8 {[%emt 0:00:09]} 61. e6 {[%emt 0:00:00]} Ra4 {[%emt 0:00:54]} 62. Ke5 {[%emt 0:00:30]} Ra5 {[%emt 0:00:09]} 63. Nc6 {[%emt 0:00:16]} Rb5 {[%emt 0:00:22]} 64. Rd8# {[%emt 0:00:00]} 1-0

[Event "Balkan Youth Online-ch 2020"]
[Site "Online"]
[Date "2020.10.31"]
[Round "5.50"]
[White "Akdag, Omer Amir"]
[Black "Zvezdakoski Matej"]
[Result "1-0"]
[ECO "D05"]
[WhiteElo "1970"]
[BlackElo "1917"]
[Annotator "ChessBase"]
[PlyCount "77"]
[EventDate "2020.10.31"]
[EventType "swiss"]
[SourceTitle "playchess.com"]
[Source "ChessBase"]
[SourceQuality "1"]
[TimeControl "1500+5"]

1. d4 {[%emt 0:00:00]} Nf6 {[%emt 0:00:00]} 2. Nf3 {[%emt 0:00:00]} e6 {[%emt 0:00:00]} 3. e3 {[%emt 0:00:11]} d5 {[%emt 0:00:00]} 4. Bd3 {[%emt 0:00:00]} c5 {[%emt 0:00:00]} 5. b3 {[%emt 0:00:00]} Be7 {[%emt 0:00:00]} 6. Bb2 {[%emt 0:00:00]} O-O {[%emt 0:00:00]} 7. O-O {[%emt 0:00:00]} b6 {[%emt 0:00:00]} 8. Qe2 {[%emt 0:02:30]} Bb7 {[%emt 0:01:25]} 9. Ne5 {[%emt 0:00:32]} Nbd7 {[%emt 0:01:40]} 10. Nd2 {[%emt 0:01:07]} Rc8 {[%emt 0:01:48]} 11. Rad1 {[%emt 0:01:21]} Ne4 {[%emt 0:06:06]} 12. Bxe4 {[%emt 0:10:35]} dxe4 {[%emt 0:00:12]} 13. Ndc4 {[%emt 0:02:53]} b5 {[%emt 0:06:31]} 14. dxc5 {[%emt 0:02:30]} Bd5 {[%emt 0:02:34]} 15. Nxd7 {[%emt 0:02:38]} Qxd7 {[%emt 0:00:14]} 16. Ne5 {[%emt 0:00:13]} Qb7 {[%emt 0:01:39]} 17. c4 {[%emt 0:00:51]} bxc4 {[%emt 0:00:27]} 18. bxc4 {[%emt 0:00:16]} Bc6 {[%emt 0:00:00]} 19. Rb1 {[%emt 0:00:08]} Qc7 {[%emt 0:00:30]} 20. Bd4 {[%emt 0:00:19]} f6 {[%emt 0:00:24]} 21. Nxc6 {[%emt 0:00:04]} Qxc6 {[%emt 0:00:00]} 22. Rb5 {[%emt 0:00:10]} e5 {[%emt 0:00:12]} 23. Bb2 {[%emt 0:00:14]} Bxc5 {[%emt 0:00:07]} 24. Rd1 {[%emt 0:00:00]} Rfd8 {[%emt 0:00:03]} 25. h3 {[%emt 0:00:00]} Bb6 {[%emt 0:00:26]} 26. Rbd5 {[%emt 0:00:00]} Rxd5 {[%emt 0:01:46]} 27. cxd5 {[%emt 0:00:00]} Qc2 {[%emt 0:00:26]} 28. Rd2 {[%emt 0:00:00]} Qb1+ {[%emt 0:00:29]} 29. Kh2 {[%emt 0:00:00]} Ba5 {[%emt 0:00:01]} 30. Qa6 {[%emt 0:00:23]} Bxd2 {[%emt 0:00:19]} 31. Qxc8+ {[%emt 0:00:00]} Kf7 {[%emt 0:00:00]} 32. Ba3 {[%emt 0:00:20]} Bb4 {[%emt 0:00:00]} 33. d6 {[%emt 0:00:12]} Bxa3 {[%emt 0:00:00]} 34. d7 {[%emt 0:00:00]} Be7 {[%emt 0:00:17]} 35. Qe8+ {[%emt 0:00:00]} Ke6 {[%emt 0:00:00]} 36. d8=Q {[%emt 0:00:00]} Qb7 {[%emt 0:00:00]} 37. Qg8+ {[%emt 0:00:00]} Kf5 {[%emt 0:00:00]} 38. g4+ {[%emt 0:00:00]} Kg6 {[%emt 0:00:00]} 39. Qde8+ {[%emt 0:00:00]} 1-0